[Event "*** Titled Tuesday Blitz"]
[Site "Chess.com"]
[Date "2019.07.02"]
[Round "1"]
[White "IMRosen"]
[Black "julinha97"]
[Result "1-0"]
[WhiteElo "2566"]
[BlackElo "2208"]
[TimeControl "180+2"]
[EndTime "13:10:16 PDT"]
[Termination "IMRosen won by resignation"]

1. d4 {[%clk 0:03:01.9]} 1... Nf6 {[%clk 0:03:00.6]} 2. Bf4 {[%clk 0:03:02.4]}
2... d6 {[%clk 0:03:01.2]} 3. Nc3 {[%clk 0:03:02.7]} 3... Nbd7 {[%clk
0:02:57.2]} 4. Nf3 {[%clk 0:03:03.5]} 4... c5 {[%clk 0:02:48.8]} 5. e3 {[%clk
0:02:56.4]} 5... cxd4 {[%clk 0:02:49.2]} 6. exd4 {[%clk 0:02:52.1]} 6... g6
{[%clk 0:02:50.3]} 7. Be2 {[%clk 0:02:51.8]} 7... Bg7 {[%clk 0:02:51.1]} 8. O-O
{[%clk 0:02:44]} 8... O-O {[%clk 0:02:51]} 9. h3 {[%clk 0:02:45.6]} 9... b6
{[%clk 0:02:30]} 10. a4 {[%clk 0:02:44.6]} 10... Bb7 {[%clk 0:02:30.3]} 11. Nb1
{[%clk 0:02:15.2]} 11... Rc8 {[%clk 0:02:15.4]} 12. c3 {[%clk 0:02:03.2]} 12...
e5 {[%clk 0:01:55.5]} 13. Bh2 {[%clk 0:01:48.5]} 13... Bxf3 {[%clk 0:01:51.2]}
14. Bxf3 {[%clk 0:01:47.4]} 14... e4 {[%clk 0:01:52.9]} 15. Be2 {[%clk
0:01:45.8]} 15... d5 {[%clk 0:01:54.4]} 16. Ba6 {[%clk 0:01:43.2]} 16... Rc6
{[%clk 0:01:53.1]} 17. Bb7 {[%clk 0:01:39.1]} 17... Re6 {[%clk 0:01:51.5]} 18.
Qb3 {[%clk 0:01:23.7]} 18... Rfe8 {[%clk 0:01:29.1]} 19. Bxd5 {[%clk 0:01:14.2]}
19... Nxd5 {[%clk 0:01:31]} 20. Qxd5 {[%clk 0:01:15.8]} 20... e3 {[%clk
0:01:32.5]} 21. fxe3 {[%clk 0:01:17.1]} 21... Bh6 {[%clk 0:01:26.4]} 22. Bf4
{[%clk 0:01:11.5]} 22... Bxf4 {[%clk 0:01:22.6]} 23. Rxf4 {[%clk 0:01:12.5]}
23... Qe7 {[%clk 0:01:17.9]} 24. Nd2 {[%clk 0:01:00.2]} 24... Rxe3 {[%clk
0:01:14.6]} 25. Raf1 {[%clk 0:01:01.6]} 25... Rf8 {[%clk 0:01:03.5]} 26. Ne4
{[%clk 0:00:55.7]} 26... Kg7 {[%clk 0:00:59.2]} 27. Nd6 {[%clk 0:00:49.6]} 27...
f5 {[%clk 0:00:57.1]} 28. Nc4 {[%clk 0:00:40.7]} 28... Re2 {[%clk 0:00:47.1]}
29. Qf3 {[%clk 0:00:41.5]} 29... Re4 {[%clk 0:00:40.8]} 30. Nd2 {[%clk
0:00:35.9]} 30... Rxf4 {[%clk 0:00:41.3]} 31. Qxf4 {[%clk 0:00:37.8]} 31... Rf7
{[%clk 0:00:40.8]} 32. Nf3 {[%clk 0:00:38.2]} 32... Qe2 {[%clk 0:00:40]} 33. Qd2
{[%clk 0:00:39.4]} 33... Qxd2 {[%clk 0:00:40]} 34. Nxd2 {[%clk 0:00:41.3]} 34...
Re7 {[%clk 0:00:41.6]} 35. Kf2 {[%clk 0:00:42.5]} 35... Nf6 {[%clk 0:00:43]} 36.
Ra1 {[%clk 0:00:37.6]} 36... Nd5 {[%clk 0:00:34]} 37. g3 {[%clk 0:00:30.8]}
37... f4 {[%clk 0:00:33.4]} 38. g4 {[%clk 0:00:25.9]} 38... Re3 {[%clk 0:00:31]}
39. Nf3 {[%clk 0:00:26.6]} 39... Nf6 {[%clk 0:00:25.3]} 40. Re1 {[%clk
0:00:19.2]} 40... Ne4+ {[%clk 0:00:26.1]} 41. Kg2 {[%clk 0:00:20.9]} 41... Rxe1
{[%clk 0:00:17.2]} 42. Nxe1 {[%clk 0:00:22.8]} 42... Nd2 {[%clk 0:00:18.1]} 43.
Nd3 {[%clk 0:00:22.1]} 43... f3+ {[%clk 0:00:18.1]} 44. Kf2 {[%clk 0:00:22.3]}
44... Kf6 {[%clk 0:00:17.3]} 45. Ke3 {[%clk 0:00:23.2]} 45... Nc4+ {[%clk
0:00:18.6]} 46. Kxf3 {[%clk 0:00:24.2]} 46... g5 {[%clk 0:00:19.4]} 47. Ke4
{[%clk 0:00:25.1]} 47... Ke6 {[%clk 0:00:20]} 48. b3 {[%clk 0:00:24.2]} 48...
Nd2+ {[%clk 0:00:20.6]} 49. Ke3 {[%clk 0:00:24.3]} 49... Nxb3 {[%clk 0:00:22.5]}
50. Ne5 {[%clk 0:00:22.8]} 50... Na5 {[%clk 0:00:23]} 51. Ke4 {[%clk 0:00:19.9]}
51... Nb7 {[%clk 0:00:22.2]} 52. d5+ {[%clk 0:00:19.2]} 52... Kf6 {[%clk
0:00:23.7]} 53. Nc6 {[%clk 0:00:18.1]} 53... Nd6+ {[%clk 0:00:24.5]} 54. Kd4
{[%clk 0:00:19.5]} 54... a6 {[%clk 0:00:24.8]} 55. Ne5 {[%clk 0:00:20.4]} 55...
b5 {[%clk 0:00:25.3]} 56. a5 {[%clk 0:00:17.5]} 56... Nb7 {[%clk 0:00:19.7]} 57.
Nc6 {[%clk 0:00:18.2]} 57... h6 {[%clk 0:00:20.3]} 58. c4 {[%clk 0:00:16.6]}
58... bxc4 {[%clk 0:00:21.5]} 59. Kxc4 {[%clk 0:00:18.5]} 59... Nd6+ {[%clk
0:00:22.4]} 60. Kc5 {[%clk 0:00:19.4]} 60... Ne4+ {[%clk 0:00:23.3]} 61. Kb6
{[%clk 0:00:20.8]} 61... Nf2 {[%clk 0:00:23.7]} 62. d6 {[%clk 0:00:20]} 62...
Ke6 {[%clk 0:00:24.6]} 63. Kc7 {[%clk 0:00:21]} 63... Ne4 {[%clk 0:00:08]} 64.
d7 {[%clk 0:00:21.6]} 1-0

[Event "*** Titled Tuesday Blitz"]
[Site "Chess.com"]
[Date "2019.07.02"]
[Round "1"]
[White "vlad10898"]
[Black "Hrant_ChessMood"]
[Result "1/2-1/2"]
[WhiteElo "2471"]
[BlackElo "2950"]
[TimeControl "180+2"]
[EndTime "13:10:23 PDT"]
[Termination "Game drawn - insufficient material"]

1. e4 {[%clk 0:03:00.3]} 1... c6 {[%clk 0:03:01.1]} 2. d4 {[%clk 0:03:01.1]}
2... d5 {[%clk 0:03:02.6]} 3. e5 {[%clk 0:03:02.5]} 3... c5 {[%clk 0:03:03.4]}
4. dxc5 {[%clk 0:03:03.2]} 4... e6 {[%clk 0:03:04.8]} 5. a3 {[%clk 0:03:04.4]}
5... Bxc5 {[%clk 0:03:04.3]} 6. Nf3 {[%clk 0:03:05.3]} 6... Ne7 {[%clk
0:03:04.4]} 7. b4 {[%clk 0:03:06.5]} 7... Bb6 {[%clk 0:03:05.1]} 8. Bd3 {[%clk
0:03:07.8]} 8... a5 {[%clk 0:03:05.9]} 9. b5 {[%clk 0:03:05.2]} 9... Nd7 {[%clk
0:03:05.1]} 10. O-O {[%clk 0:03:03.9]} 10... Nc5 {[%clk 0:03:04.3]} 11. a4
{[%clk 0:03:03.7]} 11... Nxd3 {[%clk 0:02:54.4]} 12. cxd3 {[%clk 0:03:00.9]}
12... O-O {[%clk 0:02:52.7]} 13. Ba3 {[%clk 0:03:01.6]} 13... Re8 {[%clk
0:02:53.4]} 14. Nbd2 {[%clk 0:03:00.3]} 14... Ng6 {[%clk 0:02:41.4]} 15. Nb3
{[%clk 0:02:52.8]} 15... f6 {[%clk 0:02:40.2]} 16. d4 {[%clk 0:02:40.7]} 16...
Bd7 {[%clk 0:02:32.3]} 17. Nc5 {[%clk 0:02:24.8]} 17... Rb8 {[%clk 0:02:06.7]}
18. Rc1 {[%clk 0:02:21.1]} 18... Qe7 {[%clk 0:01:52.2]} 19. Qb3 {[%clk
0:01:57.7]} 19... Qf7 {[%clk 0:01:50.7]} 20. Nd3 {[%clk 0:01:56.1]} 20... Rbc8
{[%clk 0:01:46.7]} 21. Bd6 {[%clk 0:01:53.1]} 21... h6 {[%clk 0:01:03.3]} 22.
Rfe1 {[%clk 0:01:41.6]} 22... Red8 {[%clk 0:00:52.8]} 23. g3 {[%clk 0:01:13.6]}
23... Be8 {[%clk 0:00:53.8]} 24. h4 {[%clk 0:01:02.9]} 24... Ne7 {[%clk
0:00:44.6]} 25. Bxe7 {[%clk 0:00:46.3]} 25... Qxe7 {[%clk 0:00:44.6]} 26. exf6
{[%clk 0:00:47.7]} 26... Qxf6 {[%clk 0:00:37.3]} 27. Rxc8 {[%clk 0:00:42.1]}
27... Rxc8 {[%clk 0:00:38.1]} 28. Nf4 {[%clk 0:00:43.7]} 28... Bf7 {[%clk
0:00:33.3]} 29. Qe3 {[%clk 0:00:25.9]} 29... Re8 {[%clk 0:00:20.6]} 30. Ne5
{[%clk 0:00:26.4]} 30... Re7 {[%clk 0:00:12.9]} 31. Rc1 {[%clk 0:00:25.9]} 31...
Bc7 {[%clk 0:00:09.2]} 32. b6 {[%clk 0:00:18.4]} 32... Bxe5 {[%clk 0:00:07]} 33.
Qxe5 {[%clk 0:00:11.8]} 33... Qxe5 {[%clk 0:00:07.2]} 34. dxe5 {[%clk
0:00:13.5]} 34... Be8 {[%clk 0:00:08.5]} 35. Rc7 {[%clk 0:00:14]} 35... Kf7
{[%clk 0:00:09.3]} 36. Nd3 {[%clk 0:00:07.5]} 36... Bxa4 {[%clk 0:00:07.4]} 37.
Nc5 {[%clk 0:00:08.8]} 37... Bc6 {[%clk 0:00:08.5]} 38. Kf1 {[%clk 0:00:09.8]}
38... a4 {[%clk 0:00:08.7]} 39. Rc8 {[%clk 0:00:10.5]} 39... Kg6 {[%clk
0:00:05.3]} 40. Ke2 {[%clk 0:00:10]} 40... Kf5 {[%clk 0:00:03.8]} 41. Rc7 {[%clk
0:00:11.4]} 41... Re8 {[%clk 0:00:03.7]} 42. Nxb7 {[%clk 0:00:12.9]} 42... Bxb7
{[%clk 0:00:03.3]} 43. Rxb7 {[%clk 0:00:14.3]} 43... a3 {[%clk 0:00:04.8]} 44.
Rxg7 {[%clk 0:00:16]} 44... Rb8 {[%clk 0:00:04]} 45. Ra7 {[%clk 0:00:17.1]}
45... Rxb6 {[%clk 0:00:04.8]} 46. Rxa3 {[%clk 0:00:18.7]} 46... Kxe5 {[%clk
0:00:06.3]} 47. Re3+ {[%clk 0:00:20]} 47... Kd4 {[%clk 0:00:07]} 48. f4 {[%clk
0:00:17.3]} 48... Kc4 {[%clk 0:00:07.2]} 49. Re5 {[%clk 0:00:13.1]} 49... d4
{[%clk 0:00:08.1]} 50. g4 {[%clk 0:00:14.3]} 50... Rb2+ {[%clk 0:00:06.4]} 51.
Ke1 {[%clk 0:00:15.7]} 51... Rg2 {[%clk 0:00:05.3]} 52. g5 {[%clk 0:00:16.6]}
52... hxg5 {[%clk 0:00:07.2]} 53. hxg5 {[%clk 0:00:18.1]} 53... Rg4 {[%clk
0:00:08.2]} 54. Rxe6 {[%clk 0:00:18.4]} 54... Rxf4 {[%clk 0:00:09.7]} 55. g6
{[%clk 0:00:20]} 55... Rg4 {[%clk 0:00:10.3]} 56. Ke2 {[%clk 0:00:19.8]} 56...
Rg5 {[%clk 0:00:08.1]} 57. Rc6+ {[%clk 0:00:19]} 57... Kd5 {[%clk 0:00:09]} 58.
Ra6 {[%clk 0:00:20.3]} 58... Ke4 {[%clk 0:00:10.3]} 59. Kf2 {[%clk 0:00:21.1]}
59... d3 {[%clk 0:00:10.6]} 60. Ra4+ {[%clk 0:00:22]} 60... Kf5 {[%clk
0:00:11.5]} 61. Ke3 {[%clk 0:00:23.1]} 61... Rg3+ {[%clk 0:00:11.7]} 62. Kd2
{[%clk 0:00:24.1]} 62... Kxg6 {[%clk 0:00:12.3]} 63. Rd4 {[%clk 0:00:25.3]}
63... Kf5 {[%clk 0:00:13.5]} 64. Rxd3 {[%clk 0:00:26.7]} 64... Rxd3+ {[%clk
0:00:15.3]} 65. Kxd3 {[%clk 0:00:28.1]} 1/2-1/2

[Event "*** Titled Tuesday Blitz"]
[Site "Chess.com"]
[Date "2019.07.02"]
[Round "1"]
[White "hermionegrangermagic"]
[Black "alishersuleymenov"]
[Result "1-0"]
[WhiteElo "2309"]
[BlackElo "2597"]
[TimeControl "180+2"]
[EndTime "13:10:23 PDT"]
[Termination "hermionegrangermagic won by resignation"]

1. e4 {[%clk 0:03:01.9]} 1... c5 {[%clk 0:02:58.3]} 2. Nf3 {[%clk 0:03:02.4]}
2... e6 {[%clk 0:02:59.7]} 3. d4 {[%clk 0:02:59]} 3... d5 {[%clk 0:03:00.9]} 4.
exd5 {[%clk 0:02:57]} 4... exd5 {[%clk 0:03:02.8]} 5. Nc3 {[%clk 0:02:58.2]}
5... Nf6 {[%clk 0:03:03.6]} 6. Be2 {[%clk 0:02:57.9]} 6... Nc6 {[%clk
0:03:03.9]} 7. O-O {[%clk 0:02:58.5]} 7... cxd4 {[%clk 0:03:05.1]} 8. Nxd4
{[%clk 0:02:59.2]} 8... Bc5 {[%clk 0:03:06.5]} 9. Be3 {[%clk 0:02:59.1]} 9...
Bb6 {[%clk 0:03:06.1]} 10. Na4 {[%clk 0:02:36.6]} 10... Bc7 {[%clk 0:02:46.9]}
11. Nxc6 {[%clk 0:02:22.2]} 11... bxc6 {[%clk 0:02:47.7]} 12. c4 {[%clk
0:02:23.2]} 12... O-O {[%clk 0:02:48.4]} 13. Bf3 {[%clk 0:02:16.7]} 13... Bf5
{[%clk 0:02:33]} 14. Nc3 {[%clk 0:02:11.3]} 14... Qc8 {[%clk 0:02:03.7]} 15.
cxd5 {[%clk 0:02:04]} 15... Rd8 {[%clk 0:02:04.4]} 16. Rc1 {[%clk 0:01:54.8]}
16... Rb8 {[%clk 0:01:45.4]} 17. Qe2 {[%clk 0:01:29.7]} 17... a5 {[%clk
0:01:26.5]} 18. Rfd1 {[%clk 0:01:25.3]} 18... c5 {[%clk 0:01:25.3]} 19. Bxc5
{[%clk 0:01:11.4]} 19... Bxh2+ {[%clk 0:01:25]} 20. Kxh2 {[%clk 0:01:13.3]}
20... Qxc5 {[%clk 0:01:26.7]} 21. Ne4 {[%clk 0:01:07.7]} 21... Qe7 {[%clk
0:01:27.8]} 22. d6 {[%clk 0:01:01.8]} 22... Qe5+ {[%clk 0:01:24.7]} 23. Ng3
{[%clk 0:00:52.2]} 23... Qf4 {[%clk 0:01:26.1]} 24. Qd2 {[%clk 0:00:42.7]} 24...
Qh4+ {[%clk 0:01:25.4]} 25. Kg1 {[%clk 0:00:41.6]} 25... Be6 {[%clk 0:01:27.3]}
26. Qxa5 {[%clk 0:00:35.6]} 26... Qf4 {[%clk 0:01:18]} 27. Qd2 {[%clk
0:00:30.1]} 27... Qh4 {[%clk 0:01:11.7]} 28. b3 {[%clk 0:00:30.9]} 28... h5
{[%clk 0:01:02.2]} 29. Qd4 {[%clk 0:00:30]} 29... Qg5 {[%clk 0:01:03.4]} 30. Rc5
{[%clk 0:00:25.2]} 30... Qg6 {[%clk 0:01:04.8]} 31. Bxh5 {[%clk 0:00:22.6]}
31... Qh6 {[%clk 0:00:59.8]} 32. Bf3 {[%clk 0:00:21.3]} 32... Rd7 {[%clk
0:00:53.7]} 33. Qe3 {[%clk 0:00:20.5]} 33... Qg6 {[%clk 0:00:51.4]} 34. Qg5
{[%clk 0:00:21.4]} 34... Qh7 {[%clk 0:00:42.8]} 35. Qf4 {[%clk 0:00:13.9]} 35...
Qg6 {[%clk 0:00:30.1]} 36. Rg5 {[%clk 0:00:11.2]} 36... Qh6 {[%clk 0:00:25.4]}
37. Nf5 {[%clk 0:00:09.2]} 37... Bxf5 {[%clk 0:00:24.8]} 38. Rxf5 {[%clk
0:00:10.1]} 38... Qg6 {[%clk 0:00:24.7]} 39. Qg5 {[%clk 0:00:10.6]} 39... Ra7
{[%clk 0:00:17]} 40. Qxg6 {[%clk 0:00:10.6]} 40... fxg6 {[%clk 0:00:18.4]} 41.
Rc5 {[%clk 0:00:09.1]} 41... Kf8 {[%clk 0:00:16.4]} 42. Rd2 {[%clk 0:00:08.6]}
42... Ke8 {[%clk 0:00:17.1]} 43. Rc7 {[%clk 0:00:09.6]} 43... Ra5 {[%clk
0:00:06.6]} 44. Rxg7 {[%clk 0:00:09.6]} 44... Kf8 {[%clk 0:00:07.2]} 45. Rxg6
{[%clk 0:00:10.4]} 45... Kf7 {[%clk 0:00:08.8]} 46. Rg3 {[%clk 0:00:11.4]} 46...
Rc8 {[%clk 0:00:10.4]} 47. d7 {[%clk 0:00:10.2]} 47... Rd8 {[%clk 0:00:11.4]}
48. Rh3 {[%clk 0:00:09.9]} 48... Rc5 {[%clk 0:00:10]} 49. g3 {[%clk 0:00:10]}
49... Kg6 {[%clk 0:00:07.8]} 50. Kg2 {[%clk 0:00:10.8]} 50... Ra5 {[%clk
0:00:07.4]} 51. Bd1 {[%clk 0:00:11.8]} 51... Kg7 {[%clk 0:00:05.6]} 52. Bc2
{[%clk 0:00:13.3]} 52... Rxa2 {[%clk 0:00:06.5]} 53. Rh4 {[%clk 0:00:12.6]}
53... Ra5 {[%clk 0:00:03.3]} 54. Rc4 {[%clk 0:00:13.1]} 54... Kf7 {[%clk
0:00:04.8]} 55. b4 {[%clk 0:00:13.5]} 55... Ra7 {[%clk 0:00:04.8]} 56. Bb3
{[%clk 0:00:14.2]} 56... Ke7 {[%clk 0:00:05]} 57. Re2+ {[%clk 0:00:14]} 57...
Kf8 {[%clk 0:00:04.8]} 58. Rf4 {[%clk 0:00:14.7]} 58... Ra6 {[%clk 0:00:05.6]}
59. b5 {[%clk 0:00:15.4]} 59... Rb6 {[%clk 0:00:06.9]} 60. Re5 {[%clk
0:00:15.5]} 60... Kg7 {[%clk 0:00:06.6]} 61. Rg5+ {[%clk 0:00:16]} 61... Kf8
{[%clk 0:00:07.8]} 62. Rg6 {[%clk 0:00:16.8]} 62... Ke7 {[%clk 0:00:08.9]} 63.
Rg7+ {[%clk 0:00:17.3]} 63... Kd6 {[%clk 0:00:10.4]} 64. Rxf6+ {[%clk
0:00:18.2]} 1-0

[Event "*** Titled Tuesday Blitz"]
[Site "Chess.com"]
[Date "2019.07.02"]
[Round "1"]
[White "RitvarsReimanis"]
[Black "OglazaOskar2005"]
[Result "1/2-1/2"]
[WhiteElo "2568"]
[BlackElo "2232"]
[TimeControl "180+2"]
[EndTime "13:10:37 PDT"]
[Termination "Game drawn by repetition"]

1. d4 {[%clk 0:03:01.4]} 1... Nf6 {[%clk 0:03:00.6]} 2. c4 {[%clk 0:03:02.2]}
2... g6 {[%clk 0:03:01.7]} 3. Nc3 {[%clk 0:03:03.1]} 3... d5 {[%clk 0:03:03.1]}
4. e3 {[%clk 0:03:04]} 4... Bg7 {[%clk 0:03:03.9]} 5. Qb3 {[%clk 0:03:05.2]}
5... dxc4 {[%clk 0:03:02.9]} 6. Bxc4 {[%clk 0:03:07.1]} 6... O-O {[%clk
0:03:03.8]} 7. Nf3 {[%clk 0:03:07.7]} 7... b6 {[%clk 0:02:52.8]} 8. Ne5 {[%clk
0:03:04.9]} 8... e6 {[%clk 0:02:52.8]} 9. O-O {[%clk 0:03:04.3]} 9... Bb7 {[%clk
0:02:43]} 10. Bd2 {[%clk 0:03:02.1]} 10... Nbd7 {[%clk 0:02:40.2]} 11. Nxd7
{[%clk 0:03:00]} 11... Qxd7 {[%clk 0:02:40.5]} 12. Rfd1 {[%clk 0:03:01.4]} 12...
a5 {[%clk 0:02:28.9]} 13. Rac1 {[%clk 0:03:00.3]} 13... Rfd8 {[%clk 0:02:27]}
14. Bb5 {[%clk 0:02:55.2]} 14... Qe7 {[%clk 0:02:26.7]} 15. Bf1 {[%clk
0:02:53.9]} 15... Rac8 {[%clk 0:02:23]} 16. Be1 {[%clk 0:02:49.1]} 16... Nd5
{[%clk 0:02:22.6]} 17. Nb5 {[%clk 0:02:46.6]} 17... e5 {[%clk 0:02:22.1]} 18. e4
{[%clk 0:02:40.8]} 18... Nf6 {[%clk 0:02:18.5]} 19. f3 {[%clk 0:02:33.1]} 19...
exd4 {[%clk 0:02:18.7]} 20. Nxd4 {[%clk 0:02:06.7]} 20... Nxe4 {[%clk 0:02:17]}
21. Nb5 {[%clk 0:01:40.7]} 21... Nc5 {[%clk 0:02:17.1]} 22. Qa3 {[%clk
0:01:36.1]} 22... Bh6 {[%clk 0:02:17.5]} 23. Rb1 {[%clk 0:01:33]} 23... Qe3+
{[%clk 0:01:47.5]} 24. Bf2 {[%clk 0:01:33.7]} 24... Qxa3 {[%clk 0:01:47]} 25.
Nxa3 {[%clk 0:01:35.6]} 25... Ne6 {[%clk 0:01:45.8]} 26. Nb5 {[%clk 0:01:29.4]}
26... Bd5 {[%clk 0:01:39.8]} 27. Nc3 {[%clk 0:01:24.4]} 27... Bb7 {[%clk
0:01:37]} 28. Nb5 {[%clk 0:01:25.3]} 28... Bf8 {[%clk 0:01:26.9]} 29. Bc4 {[%clk
0:01:18.5]} 29... Nc5 {[%clk 0:00:57.1]} 30. Rxd8 {[%clk 0:01:10.2]} 30... Rxd8
{[%clk 0:00:57.4]} 31. Nxc7 {[%clk 0:01:11.7]} 31... Rd2 {[%clk 0:00:56.6]} 32.
Nb5 {[%clk 0:00:56.5]} 32... Bc6 {[%clk 0:00:55.6]} 33. Be3 {[%clk 0:00:49.3]}
33... Rd7 {[%clk 0:00:52.6]} 34. Nc3 {[%clk 0:00:44.1]} 34... Bg7 {[%clk
0:00:45.5]} 35. Ne2 {[%clk 0:00:41.6]} 35... Bd5 {[%clk 0:00:41.1]} 36. b3
{[%clk 0:00:37]} 36... Bxc4 {[%clk 0:00:40.8]} 37. bxc4 {[%clk 0:00:38.9]} 37...
Rd3 {[%clk 0:00:41.7]} 38. Kf2 {[%clk 0:00:35.9]} 38... Ra3 {[%clk 0:00:40.9]}
39. Rxb6 {[%clk 0:00:33.8]} 39... Nd3+ {[%clk 0:00:42]} 40. Kg3 {[%clk
0:00:32.2]} 40... Be5+ {[%clk 0:00:37.6]} 41. Kh3 {[%clk 0:00:27.5]} 41... Rxa2
{[%clk 0:00:36.5]} 42. Ng3 {[%clk 0:00:18.1]} 42... a4 {[%clk 0:00:33.8]} 43.
Ne4 {[%clk 0:00:18]} 43... Nf4+ {[%clk 0:00:34.9]} 44. Bxf4 {[%clk 0:00:18.6]}
44... Bxf4 {[%clk 0:00:36.8]} 45. Ra6 {[%clk 0:00:17.9]} 45... a3 {[%clk
0:00:37.7]} 46. Nc3 {[%clk 0:00:19.1]} 46... Ra1 {[%clk 0:00:38.1]} 47. Nd5
{[%clk 0:00:21]} 47... Be5 {[%clk 0:00:38.7]} 48. Nb4 {[%clk 0:00:20.7]} 48...
Rb1 {[%clk 0:00:37.9]} 49. Nd3 {[%clk 0:00:22.2]} 49... Bb2 {[%clk 0:00:30.5]}
50. Nxb2 {[%clk 0:00:22.9]} 50... axb2 {[%clk 0:00:31.3]} 51. Rb6 {[%clk
0:00:24.5]} 51... Kf8 {[%clk 0:00:30.9]} 52. Rb7 {[%clk 0:00:24.9]} 52... Ke8
{[%clk 0:00:30.7]} 53. c5 {[%clk 0:00:26.2]} 53... Kd8 {[%clk 0:00:30.4]} 54. c6
{[%clk 0:00:27.6]} 54... Kc8 {[%clk 0:00:31]} 55. Kg3 {[%clk 0:00:28.9]} 55...
f6 {[%clk 0:00:32]} 56. h4 {[%clk 0:00:29.8]} 56... h5 {[%clk 0:00:31.6]} 57.
Kf4 {[%clk 0:00:29.2]} 57... Kd8 {[%clk 0:00:29.2]} 58. Kg3 {[%clk 0:00:30.2]}
58... g5 {[%clk 0:00:29.5]} 59. hxg5 {[%clk 0:00:30.1]} 59... fxg5 {[%clk
0:00:31.4]} 60. Rd7+ {[%clk 0:00:26.3]} 60... Kc8 {[%clk 0:00:29.5]} 61. Rb7
{[%clk 0:00:28.2]} 61... h4+ {[%clk 0:00:29.8]} 62. Kg4 {[%clk 0:00:25.1]} 62...
h3 {[%clk 0:00:30.5]} 63. Kg3 {[%clk 0:00:15.4]} 63... hxg2 {[%clk 0:00:15.5]}
64. Kxg2 {[%clk 0:00:17.3]} 64... Kd8 {[%clk 0:00:16]} 65. Rd7+ {[%clk
0:00:17.8]} 65... Kc8 {[%clk 0:00:17.2]} 66. Rb7 {[%clk 0:00:19.7]} 66... Kd8
{[%clk 0:00:17.5]} 67. Rd7+ {[%clk 0:00:21]} 67... Kc8 {[%clk 0:00:18.4]} 68.
Rb7 {[%clk 0:00:22.9]} 1/2-1/2

[Event "*** Titled Tuesday Blitz"]
[Site "Chess.com"]
[Date "2019.07.02"]
[Round "1"]
[White "fm_magua"]
[Black "Grischuk"]
[Result "1/2-1/2"]
[WhiteElo "2484"]
[BlackElo "3090"]
[TimeControl "180+2"]
[EndTime "13:10:39 PDT"]
[Termination "Game drawn by agreement"]

1. e4 {[%clk 0:03:01.8]} 1... c5 {[%clk 0:02:39.9]} 2. Nf3 {[%clk 0:03:02.5]}
2... Nc6 {[%clk 0:02:41.2]} 3. d4 {[%clk 0:03:04.1]} 3... cxd4 {[%clk
0:02:43.1]} 4. Nxd4 {[%clk 0:03:05.8]} 4... Nf6 {[%clk 0:02:44]} 5. Nc3 {[%clk
0:03:06.7]} 5... e5 {[%clk 0:02:44.6]} 6. Ndb5 {[%clk 0:03:07.7]} 6... d6 {[%clk
0:02:45.8]} 7. Nd5 {[%clk 0:03:06.7]} 7... Nxd5 {[%clk 0:02:46.6]} 8. exd5
{[%clk 0:03:08.1]} 8... Nb8 {[%clk 0:02:48.2]} 9. a4 {[%clk 0:03:05.2]} 9... Be7
{[%clk 0:02:49.2]} 10. c3 {[%clk 0:03:05.7]} 10... O-O {[%clk 0:02:49.5]} 11.
Be3 {[%clk 0:03:06.9]} 11... a6 {[%clk 0:02:46.9]} 12. Na3 {[%clk 0:03:07.8]}
12... Nd7 {[%clk 0:02:41.3]} 13. Be2 {[%clk 0:03:07]} 13... f5 {[%clk
0:02:41.8]} 14. f4 {[%clk 0:03:07.7]} 14... exf4 {[%clk 0:02:30.5]} 15. Bxf4
{[%clk 0:03:08.8]} 15... Nc5 {[%clk 0:02:29.5]} 16. O-O {[%clk 0:03:05.1]} 16...
b6 {[%clk 0:02:30.1]} 17. Bf3 {[%clk 0:03:01.7]} 17... Ra7 {[%clk 0:02:16.1]}
18. Nc4 {[%clk 0:02:56.1]} 18... a5 {[%clk 0:02:10.4]} 19. b4 {[%clk 0:02:49.7]}
19... Ba6 {[%clk 0:02:05]} 20. b5 {[%clk 0:02:10.6]} 20... Bc8 {[%clk
0:02:05.6]} 21. Re1 {[%clk 0:02:10.4]} 21... Rd7 {[%clk 0:01:23.1]} 22. Ra2
{[%clk 0:01:46.3]} 22... g5 {[%clk 0:01:21.8]} 23. Be3 {[%clk 0:01:45.2]} 23...
Bf6 {[%clk 0:01:15.9]} 24. Bd4 {[%clk 0:01:45]} 24... g4 {[%clk 0:01:00.4]} 25.
Be2 {[%clk 0:01:37.2]} 25... Rg7 {[%clk 0:00:56.3]} 26. Bd3 {[%clk 0:01:26.5]}
26... f4 {[%clk 0:00:54.2]} 27. Rf2 {[%clk 0:01:19.4]} 27... f3 {[%clk
0:00:40.6]} 28. g3 {[%clk 0:01:18.8]} 28... Bxd4 {[%clk 0:00:32.5]} 29. cxd4
{[%clk 0:01:19.6]} 29... Nxd3 {[%clk 0:00:34.4]} 30. Qxd3 {[%clk 0:01:20.9]}
30... Bf5 {[%clk 0:00:36.1]} 31. Qe3 {[%clk 0:01:20.6]} 31... Qc7 {[%clk
0:00:34.3]} 32. Nd2 {[%clk 0:01:17.1]} 32... Bg6 {[%clk 0:00:32.3]} 33. Nf1
{[%clk 0:01:13.5]} 33... Re8 {[%clk 0:00:24.8]} 34. Qd2 {[%clk 0:01:10.9]} 34...
Rge7 {[%clk 0:00:24.7]} 35. Rc1 {[%clk 0:01:11.1]} 35... Qd7 {[%clk 0:00:24.1]}
36. Qg5 {[%clk 0:01:05.6]} 36... Re2 {[%clk 0:00:23.4]} 37. Rc2 {[%clk
0:00:48.4]} 37... Qg7 {[%clk 0:00:19.2]} 38. Rd2 {[%clk 0:00:49.1]} 38... Bf7
{[%clk 0:00:13.4]} 39. Qf4 {[%clk 0:00:47.9]} 39... Bxd5 {[%clk 0:00:12.9]} 40.
Qxd6 {[%clk 0:00:48.3]} 40... Bc4 {[%clk 0:00:08.6]} 41. Qf4 {[%clk 0:00:48.4]}
41... Re1 {[%clk 0:00:09.2]} 42. d5 {[%clk 0:00:47.4]} 42... Rc1 {[%clk
0:00:09.4]} 43. Rc2 {[%clk 0:00:41.4]} 43... Rxf1+ {[%clk 0:00:09]} 44. Rxf1
{[%clk 0:00:41.9]} 44... Bxf1 {[%clk 0:00:10.9]} 45. Kxf1 {[%clk 0:00:41.5]}
45... Rf8 {[%clk 0:00:10.6]} 46. Qe4 {[%clk 0:00:39.2]} 46... Kh8 {[%clk
0:00:10.7]} 47. d6 {[%clk 0:00:38.8]} 47... Rd8 {[%clk 0:00:08.1]} 48. Rc7
{[%clk 0:00:36.8]} 48... Qa1+ {[%clk 0:00:07.5]} 49. Kf2 {[%clk 0:00:38]} 49...
Qb2+ {[%clk 0:00:08.6]} 50. Rc2 {[%clk 0:00:37.4]} 50... Qf6 {[%clk 0:00:09.3]}
51. Qe7 {[%clk 0:00:36.1]} 51... Qxe7 {[%clk 0:00:09.1]} 52. dxe7 {[%clk
0:00:37.3]} 52... Re8 {[%clk 0:00:10.5]} 53. Rc4 {[%clk 0:00:37.4]} 53... h5
{[%clk 0:00:09.9]} 54. h3 {[%clk 0:00:38.6]} 54... gxh3 {[%clk 0:00:11.2]} 55.
Rh4 {[%clk 0:00:35.2]} 55... Rxe7 {[%clk 0:00:12]} 56. Rxh5+ {[%clk 0:00:36.5]}
56... Kg7 {[%clk 0:00:13.3]} 57. Rxh3 {[%clk 0:00:32.6]} 57... Re2+ {[%clk
0:00:07.3]} 58. Kxf3 {[%clk 0:00:33.5]} 58... Ra2 {[%clk 0:00:09.2]} 59. Rh4
{[%clk 0:00:34.6]} 59... Kf6 {[%clk 0:00:09.7]} 60. Re4 {[%clk 0:00:35.4]} 60...
Kg5 {[%clk 0:00:09.5]} 61. Rd4 {[%clk 0:00:34.7]} 61... Ra3+ {[%clk 0:00:09.6]}
62. Ke4 {[%clk 0:00:34.7]} 62... Rxg3 {[%clk 0:00:09.3]} 63. Kd5 {[%clk
0:00:35.9]} 63... Kf5 {[%clk 0:00:07.6]} 64. Kc6 {[%clk 0:00:36.7]} 64... Rg6+
{[%clk 0:00:08.3]} 65. Rd6 {[%clk 0:00:36.2]} 65... Rg4 {[%clk 0:00:09.9]} 66.
Kxb6 {[%clk 0:00:34.1]} 66... Rxa4 {[%clk 0:00:11.5]} 67. Kc5 {[%clk 0:00:34.1]}
67... Ke5 {[%clk 0:00:10.9]} 68. Ra6 {[%clk 0:00:31.1]} 68... Ra1 {[%clk
0:00:09.8]} 69. b6 {[%clk 0:00:31.9]} 69... Rc1+ {[%clk 0:00:10.9]} 70. Kb5
{[%clk 0:00:32.8]} 70... Kd6 {[%clk 0:00:11.6]} 71. Rxa5 {[%clk 0:00:30.6]}
71... Kd7 {[%clk 0:00:12.5]} 1/2-1/2